fUST/lending_fUST_20251010
["ID","MTS","AMOUNT","RATE_DAILY","PERIOD"]
[390531822,1760075447829,-206.107839,0.00016986,2]
[390531824,1760075447839,-500.0,0.00016986,2]
[390531826,1760075447847,-500.0,0.00016986,2]
[390531828,1760075447856,-500.0,0.00016986,2]
[390531829,1760075447865,-508.48,0.00016986,2]
[390531831,1760075447875,-500.0,0.00016986,2]
[390531834,1760075447884,-7538.27,0.00016986,2]
[390531836,1760075447893,-500.0,0.00016986,2]
[390531837,1760075447902,-500.0,0.00016986,2]
[390531840,1760075447911,-500.0,0.00016986,2]
[390531842,1760075447920,-500.0,0.00016986,2]
[390531843,1760075447929,-500.0,0.00016986,2]
[390531845,1760075447938,-500.0,0.00016986,2]
[390531847,1760075447947,-500.0,0.00016986,2]
[390531849,1760075447956,-500.0,0.00016986,2]
[390531851,1760075447966,-500.0,0.00016986,2]
[390531853,1760075447984,-500.0,0.00016986,2]
[390531856,1760075448006,-500.0,0.00016986,2]
[390531858,1760075448018,-569.11,0.00016986,2]
[390531860,1760075448027,-151.0,0.00016986,2]
[390531861,1760075448035,-180.50174715,0.00016986,2]
[390531864,1760075448045,-500.0,0.00016986,2]
[390531865,1760075448054,-247.39966697,0.00016986,2]
[390531867,1760075448064,-500.0,0.00016986,2]
[390531869,1760075448073,-2089.95,0.00016986,2]
[390531871,1760075448082,-650.77,0.00016986,2]
[390531873,1760075448091,-500.0,0.00016986,2]
[390531875,1760075448100,-500.0,0.00016986,2]
[390531877,1760075448110,-500.0,0.00016986,2]
[390531879,1760075448119,-1840.93,0.00016986,2]
[390531881,1760075448128,-500.0,0.00016986,2]
[390531883,1760075448137,-500.0,0.00016986,2]
[390531885,1760075448146,-500.0,0.00016986,2]
[390531887,1760075448157,-500.0,0.00016986,2]
[390531889,1760075448167,-500.0,0.00016986,2]
[390531892,1760075448176,-500.0,0.00016986,2]
[390531893,1760075448185,-500.0,0.00016986,2]
[390531895,1760075448194,-500.0,0.00016986,2]
[390531897,1760075448203,-500.0,0.00016986,2]
[390531899,1760075448212,-500.0,0.00016986,2]
[390531901,1760075448221,-500.0,0.00016986,2]
[390531903,1760075448230,-500.0,0.00016986,2]
[390531905,1760075448239,-500.0,0.00016986,2]
[390531907,1760075448248,-500.0,0.00016986,2]
[390531909,1760075448258,-151.0,0.00016986,2]
[390531911,1760075448268,-153.866277,0.00016986,2]
[390531913,1760075448277,-500.0,0.00016986,2]
[390531915,1760075448286,-5214.0,0.00016986,2]
[390531917,1760075448296,-500.0,0.00016986,2]
[390531919,1760075448305,-500.0,0.00016986,2]
[390531921,1760075448314,-862.84,0.00016986,2]
[390531924,1760075448323,-500.0,0.00016986,2]
[390531925,1760075448333,-500.0,0.00016986,2]
[390531928,1760075448343,-500.0,0.00016986,2]
[390531929,1760075448352,-500.0,0.00016986,2]
[390531931,1760075448362,-500.0,0.00016986,2]
[390531934,1760075448372,-500.0,0.00016986,2]
[390531936,1760075448382,-504.14856226,0.00016986,2]
[390531937,1760075448391,-552.2,0.00016986,2]
[390531939,1760075448401,-740.89,0.00016986,2]
[390531940,1760075448411,-500.0,0.00016986,2]
[390531941,1760075448421,-962.61,0.00016986,2]
[390531942,1760075448430,-500.0,0.00016986,2]
[390531943,1760075448440,-500.0,0.00016986,2]
[390531944,1760075448450,-1041.2,0.00016986,2]
[390531945,1760075448459,-500.0,0.00016986,2]
[390531946,1760075448470,-500.0,0.00016986,2]
[390531947,1760075448481,-500.0,0.00016986,2]
[390531948,1760075448491,-500.0,0.00016986,2]
[390531949,1760075448502,-500.0,0.00016986,2]
[390531950,1760075448511,-1384.52,0.00016986,2]
[390531951,1760075448521,-500.0,0.00016986,2]
[390531953,1760075448531,-500.0,0.00016986,2]
[390531954,1760075448540,-1601.78,0.00016986,2]
[390531956,1760075448549,-500.0,0.00016986,2]
[390531958,1760075448558,-500.0,0.00016986,2]
[390531960,1760075448567,-500.0,0.00016986,2]
[390531962,1760075448576,-500.0,0.00016986,2]
[390531964,1760075448585,-500.0,0.00016986,2]
[390531966,1760075448594,-848.24,0.00016986,2]
[390531968,1760075448603,-500.0,0.00016986,2]
[390531970,1760075448612,-2230.39,0.00016986,2]
[390531972,1760075448621,-500.0,0.00016986,2]
[390531974,1760075448630,-500.0,0.00016986,2]
[390531976,1760075448639,-1169.5,0.00016986,2]
[390531978,1760075448655,-5549.11,0.00016986,2]
[390531980,1760075448670,-500.0,0.00016986,2]
[390531982,1760075448680,-562.56,0.00016986,2]
[390531984,1760075448689,-500.0,0.00016986,2]
[390531986,1760075448698,-505.23165234,0.00016986,2]
[390531988,1760075448707,-500.0,0.00016986,2]
[390531990,1760075448716,-500.0,0.00016986,2]
[390531992,1760075448725,-1235.64455542,0.00016986,2]
[390532032,1760075449098,-781.04,0.00016986,2]
[390532050,1760075449264,-488.14538573,0.00016438,2]
[390532350,1760075452473,436.0,0.0002876,120]
[390532923,1760075458198,180.0,0.00015571,2]
[390533508,1760075611219,3000.0,0.00024,30]
[390533509,1760075618003,199.402791,0.00018975,20]
[390533513,1760075999416,20000.0,0.00028767,120]
[390533515,1760076065860,178.830551,0.00015437,2]
[390533528,1760076217086,194.417721,0.00018975,20]
[390533529,1760076259627,4494.3,0.00023943,30]
[390533531,1760076296439,3005.3024,0.00028767,120]
[390533534,1760076388855,24529.81508,0.00024,30]
[390533536,1760076469948,400.0,0.0002876,120]
[390533537,1760076478050,666.0,0.00015428,2]
[390533538,1760076532674,-3248.78435183,0.00029604,120]
[390533539,1760076532701,-248.43145725,0.00029604,120]
[390533540,1760076532725,-1793.26112152,0.00029604,120]
[390533541,1760076532751,-352.5716406,0.00029604,120]
[390533542,1760076532777,-411.10601549,0.00029604,120]
[390533543,1760076532803,-1017.29186427,0.00029604,120]
[390533544,1760076532829,-433.91419203,0.00029604,120]
[390533545,1760076532854,-1009.6466459,0.00029604,60]
[390533546,1760076532879,-1000.0,0.00029604,120]
[390533547,1760076532905,-1990.4829864,0.00029604,120]
[390533548,1760076532930,-247.4717195,0.00029604,120]
[390533549,1760076532956,-3000.0,0.00029604,120]
[390533550,1760076532981,-1405.65,0.00029604,120]
[390533551,1760076533009,-1252.457944,0.00029604,120]
[390533552,1760076533042,-1798.52552681,0.00029604,60]
[390533553,1760076533071,-2810.63,0.00029604,60]
[390533554,1760076533098,-2810.63,0.00029604,60]
[390533555,1760076533127,-2810.63,0.00029604,60]
[390533556,1760076533160,-2810.63,0.00029604,60]
[390533557,1760076533188,-2810.63,0.00029604,60]
[390533558,1760076533225,-2810.63,0.00029604,60]
[390533559,1760076533254,-2810.63,0.00029604,60]
[390533560,1760076533285,-2810.63,0.00029604,60]
[390533561,1760076533313,-2810.63,0.00029604,60]
[390533562,1760076533340,-2810.63,0.00029604,60]
[390533563,1760076533367,-2810.63,0.00029604,60]
[390533564,1760076533394,-2810.63,0.00029604,60]
[390533565,1760076533421,-2810.63,0.00029604,60]
[390533566,1760076533448,-2810.63,0.00029604,60]
[390533567,1760076533475,-2810.63,0.00029604,60]
[390533568,1760076533502,-2810.63,0.00029604,60]
[390533569,1760076533529,-2810.63,0.00029604,60]
[390533570,1760076533555,-2810.63,0.00029604,60]
[390533571,1760076533582,-2810.63,0.00029604,60]
[390533572,1760076533609,-2810.63,0.00029604,60]
[390533573,1760076533637,-2810.63,0.00029604,60]
[390533574,1760076533666,-2810.63,0.00029604,60]
[390533575,1760076533693,-2810.63,0.00029604,60]
[390533576,1760076533721,-2810.83,0.00029604,60]
[390533577,1760076533749,-282.09882579,0.00029604,120]
[390533578,1760076533777,-1134.79269473,0.00029604,60]
[390533579,1760076533804,-500.0,0.00029604,60]
[390533580,1760076533830,-500.0,0.00029604,60]
[390533581,1760076533855,-500.0,0.00029604,60]
[390533582,1760076533880,-500.0,0.00029604,60]
[390533583,1760076533920,-3000.87785654,0.00029604,120]
[390533584,1760076533950,-500.0,0.00029604,60]
[390533585,1760076533979,-500.0,0.00029604,60]
[390533586,1760076534007,-500.0,0.00029604,60]
[390533587,1760076534036,-337.62,0.00029604,60]
[390533588,1760076534064,-612.54,0.00029604,60]
[390533589,1760076534089,-3042.46770073,0.00029604,120]
[390533590,1760076534116,-18778.01701624,0.00029604,120]
[390533591,1760076534143,-4175.04,0.00029604,120]
[390533592,1760076534170,-1500.0,0.00029604,120]
[390533593,1760076534201,-6425.707,0.00029604,60]
[390533594,1760076534229,-534.92,0.00029604,60]
[390533595,1760076534256,-534.92,0.00029604,60]
[390533596,1760076534284,-534.92,0.00029604,60]
[390533597,1760076534309,-534.92,0.00029604,60]
[390533598,1760076534336,-534.92,0.00029604,60]
[390533599,1760076534362,-534.92,0.00029604,60]
[390533600,1760076534389,-534.92,0.00029604,60]
[390533601,1760076534414,-534.92,0.00029604,60]
[390533602,1760076534439,-534.92,0.00029604,60]
[390533603,1760076534464,-534.92,0.00029604,60]
[390533604,1760076534489,-534.92,0.00029604,60]
[390533605,1760076534514,-534.92,0.00029604,60]
[390533606,1760076534538,-534.92,0.00029604,60]
[390533607,1760076534563,-534.92,0.00029604,60]
[390533608,1760076534587,-534.92,0.00029604,60]
[390533609,1760076534616,-534.92,0.00029604,60]
[390533610,1760076534643,-534.92,0.00029604,60]
[390533611,1760076534669,-534.92,0.00029604,60]
[390533612,1760076534694,-534.92,0.00029604,60]
[390533613,1760076534721,-534.92,0.00029604,60]
[390533614,1760076534747,-534.92,0.00029604,60]
[390533615,1760076534773,-534.92,0.00029604,60]
[390533616,1760076534800,-534.92,0.00029604,60]
[390533617,1760076534825,-535.08776349,0.00029604,60]
[390533618,1760076534850,-500.0,0.00029604,60]
[390533619,1760076534877,-459.84,0.00029604,60]
[390533620,1760076534903,-500.0,0.00029604,60]
[390533621,1760076534930,-459.84,0.00029604,60]
[390533622,1760076534956,-1739.37724252,0.00029604,120]
[390533623,1760076534982,-200.0,0.00029604,120]
[390533624,1760076535008,-167.0,0.00029604,120]
[390533625,1760076535033,-662.224337,0.00029604,120]
[390533626,1760076535059,-100000.0,0.00029604,60]
[390533627,1760076535087,-500.0,0.00029604,60]
[390533628,1760076535113,-500.0,0.00029604,60]
[390533629,1760076535328,-500.0,0.00029604,60]
[390533630,1760076535355,-500.0,0.00029604,60]
[390533631,1760076535382,-363.15872477,0.00029604,60]
[390533632,1760076535407,-904.28468604,0.00029604,120]
[390533633,1760076535432,-1320.29239744,0.00029604,120]
[390533634,1760076535457,-732.90547467,0.00029604,120]
[390533635,1760076535482,-4435.67295464,0.00029604,60]
[390533636,1760076535506,-7752.74494261,0.00029604,120]
[390533637,1760076535530,-2372.87501324,0.00029604,60]
[390533638,1760076535554,-610.621582,0.00029604,120]
[390533639,1760076535579,-176.67,0.00029604,120]
[390533640,1760076535603,-9946.04307401,0.00029604,120]
[390533641,1760076535633,-500.0,0.00029604,60]
[390533642,1760076535660,-500.0,0.00029604,60]
[390533643,1760076535687,-500.0,0.00029604,60]
[390533644,1760076535714,-500.0,0.00029604,60]
[390533645,1760076535740,-410.24,0.00029604,60]
[390533646,1760076535767,-500.0,0.00029604,60]
[390533647,1760076535794,-500.0,0.00029604,60]
[390533648,1760076535821,-500.0,0.00029604,60]
[390533649,1760076535849,-500.0,0.00029604,60]
[390533650,1760076535877,-500.0,0.00029604,60]
[390533651,1760076535904,-326.29,0.00029604,60]
[390533652,1760076535931,-5909.184,0.00029604,60]
[390533653,1760076535954,-2642.0,0.00029604,120]
[390533654,1760076535978,-266.82294704,0.00029604,120]
[390533655,1760076536002,-9827.65857942,0.00029604,120]
[390533656,1760076536026,-1475.37890474,0.00029604,120]
[390533657,1760076536050,-988.19946344,0.00029604,120]
[390533658,1760076536074,-301.36196872,0.00029604,60]
[390533659,1760076536098,-1457.96720326,0.00029604,120]
[390533660,1760076536122,-938.36804145,0.00029604,120]
[390533661,1760076536156,-999.999988,0.00029604,120]
[390533662,1760076536184,-911.88063459,0.00029604,60]
[390533663,1760076536214,-865.51991457,0.00029604,120]
[390533664,1760076536240,-707.6628641,0.00029604,120]
[390533665,1760076536268,-240.82074905,0.00029604,120]
[390533666,1760076536294,-248.08356,0.00029604,120]
[390533667,1760076536321,-2000.0,0.00029604,120]
[390533668,1760076536347,-346.78919033,0.00029604,120]
[390533669,1760076536372,-1127.94260039,0.00029604,120]
[390533670,1760076536398,-567.97708411,0.00029604,120]
[390533671,1760076536425,-2062.27151663,0.00029604,60]
[390533672,1760076536452,-169.92319365,0.00029604,120]
[390533673,1760076536477,-373.82006332,0.00029604,120]
[390533674,1760076536503,-1032.24183588,0.00029604,120]
[390533675,1760076536528,-1468.72421026,0.00029604,120]
[390533676,1760076536553,-1539.48670955,0.00029604,120]
[390533677,1760076536580,-1390.40562573,0.00029604,120]
[390533678,1760076536604,-1888.56196383,0.00029604,60]
[390533679,1760076536629,-1601.88524712,0.00029604,120]
[390533680,1760076536655,-436.96053514,0.00029604,120]
[390533681,1760076536679,-273.88044823,0.00029604,120]
[390533682,1760076536703,-221.17252946,0.00029604,120]
[390533683,1760076536728,-324.70031317,0.00029604,120]
[390533684,1760076536752,-1374.30731497,0.00029604,60]
[390533685,1760076536778,-557.99578091,0.00029604,120]
[390533686,1760076536802,-537.8394382,0.00029604,60]
[390533687,1760076536826,-166.52176157,0.00029604,120]
[390533688,1760076536852,-545.27199107,0.00029604,120]
[390533689,1760076536883,-2032.81060924,0.00029604,120]
[390533690,1760076536908,-1034.56243005,0.00029604,120]
[390533691,1760076536933,-1203.61569965,0.00029604,120]
[390533692,1760076536958,-224.73488344,0.00029604,120]
[390533693,1760076536986,-150717.32303702,0.00029604,120]
[390533694,1760076537013,-200000.0,0.00029604,120]
[390533695,1760076537038,-200000.0,0.00029604,120]
[390533696,1760076537064,-200000.0,0.00029604,120]
[390533697,1760076537091,-200000.0,0.00029604,120]
[390533698,1760076537117,-200000.0,0.00029604,120]
[390533699,1760076537152,-200000.0,0.00029604,120]
[390533700,1760076537183,-500.0,0.00029604,60]
[390533701,1760076537226,-500.0,0.00029604,60]
[390533702,1760076537252,-500.0,0.00029604,60]
[390533703,1760076537279,-500.0,0.00029604,60]
[390533704,1760076537306,-500.0,0.00029604,60]
[390533705,1760076537331,-500.0,0.00029604,60]
[390533706,1760076537357,-500.0,0.00029604,60]
[390533707,1760076537384,-500.0,0.00029604,60]
[390533708,1760076537412,-500.0,0.00029604,60]
[390533709,1760076537439,-500.0,0.00029604,60]
[390533710,1760076537467,-419.83184293,0.00029604,60]
[390533711,1760076537493,-10480.0,0.00029604,120]
[390533712,1760076537518,-278.6956571,0.00029604,120]
[390533713,1760076537543,-3050.0,0.00029604,120]
[390533714,1760076537568,-3077.0,0.00029604,120]
[390533715,1760076537593,-2684.57644091,0.00029604,60]
[390533716,1760076537618,-544602.51749424,0.00029604,120]
[390533717,1760076537644,-252.81735629,0.00029604,60]
[390533718,1760076537669,-1439.64893285,0.00029604,120]
[390533719,1760076537694,-187.0,0.00029604,120]
[390533720,1760076537720,-742692.87269232,0.00029604,120]
[390533721,1760076543790,-648166.06247735,0.00029604,120]
[390533722,1760076543818,-3282.05,0.00029604,120]
[390533723,1760076543849,-159.0872012,0.00029604,120]
[390533724,1760076543877,-159.08720116,0.00029604,120]
[390533725,1760076543910,-159.08720116,0.00029604,120]
[390533726,1760076543944,-159.08720116,0.00029604,120]
[390533727,1760076543974,-159.08720116,0.00029604,120]
[390533728,1760076544002,-159.08720116,0.00029604,120]
[390533729,1760076544029,-159.08720116,0.00029604,120]
[390533730,1760076544056,-159.08720116,0.00029604,120]
[390533731,1760076544084,-159.08720116,0.00029604,120]
[390533732,1760076544109,-159.08720116,0.00029604,120]
[390533733,1760076544137,-200.0,0.00029604,120]
[390533734,1760076603214,247.4717195,0.00029604,120]
[390533735,1760076626058,3000.0,0.00029612,120]
[390533736,1760076629518,5000.0,0.0001652,14]
[390533767,1760076632560,-258.56305912,0.00016036,2]
[390533812,1760076635483,200.0,0.00027,120]
[390533813,1760076636129,202.81829,0.000277,120]
[390533818,1760076638310,-868.43694088,0.00016036,2]
[390533819,1760076638320,-372.90109097,0.00016036,2]
[390533820,1760076638330,-1100.91344963,0.00016338,2]
[390533821,1760076638339,-300.0,0.00016427,2]
[390533822,1760076638348,-426.46,0.00016428,3]
[390533823,1760076638358,-500.0,0.00016428,2]
[390533824,1760076638367,-500.0,0.00016428,2]
[390533825,1760076638376,-500.0,0.00016428,2]
[390533826,1760076638385,-1000.0,0.00016428,2]
[390533827,1760076638394,-500.0,0.00016428,2]
[390533828,1760076638403,-1000.0,0.00016428,2]
[390533829,1760076638412,-1000.0,0.00016428,2]
[390533830,1760076638421,-500.0,0.00016428,2]
[390533831,1760076638430,-1000.0,0.00016428,2]
[390533832,1760076638440,-2030.296672,0.00016428,2]
[390533833,1760076638449,-561.99184652,0.00016428,2]
[390533834,1760076638461,-438.00815348,0.00016428,2]
[390533835,1760076638472,-311.99184652,0.00016428,2]
[390533836,1760076638484,-524.8386771,0.00016428,2]
[390533837,1760076638493,-1000.0,0.00016428,2]
[390533838,1760076638502,-1000.0,0.00016428,2]
[390533839,1760076638512,-18603.8837,0.00016428,2]
[390533840,1760076638521,-151.0,0.00016428,2]
[390533841,1760076638530,-268.84257489,0.00016428,2]
[390533842,1760076638539,-639.87172415,0.00016428,2]
[390533843,1760076638549,-500.0,0.00016437,2]
[390533844,1760076638558,-500.0,0.00016437,2]
[390533845,1760076638567,-188.12470282,0.00016437,2]
[390533846,1760076638576,-500.0,0.00016437,2]
[390533847,1760076638586,-500.0,0.00016437,2]
[390533848,1760076638595,-500.0,0.00016437,2]
[390533849,1760076638604,-500.0,0.00016437,2]
[390533850,1760076638613,-500.0,0.00016437,2]
[390533851,1760076638622,-250.0,0.00016437,2]
[390533852,1760076638631,-500.0,0.00016437,2]
[390533853,1760076638641,-500.0,0.00016437,2]
[390533854,1760076638650,-469.99833617,0.00016437,2]
[390533855,1760076638660,-500.0,0.00016437,2]
[390533856,1760076638670,-235.10795416,0.00016437,2]
[390533857,1760076638679,-253.32781502,0.00016437,2]
[390533858,1760076638689,-447.42868235,0.00016437,2]
[390533859,1760076638700,-500.0,0.00016438,2]
[390533860,1760076638709,-500.0,0.00016438,2]
[390533861,1760076638721,-560.0,0.00016438,2]
[390533863,1760076638731,-500.0,0.00016438,2]
[390533864,1760076638741,-500.0,0.00016438,2]
[390533867,1760076638754,-500.0,0.00016438,2]
[390533868,1760076638765,-500.0,0.00016438,2]
[390533869,1760076638777,-521.29019834,0.00016438,2]
[390533870,1760076638787,-500.0,0.00016438,2]
[390533871,1760076638797,-500.0,0.00016438,2]
[390533873,1760076638808,-500.0,0.00016438,2]
[390533875,1760076638818,-482.27098122,0.00016438,2]
[390533877,1760076638828,-503.5626042,0.00016438,2]
[390533879,1760076638839,-501.39167991,0.00016438,2]
[390533880,1760076638849,-501.67387717,0.00016438,2]
[390533881,1760076638859,-640.63289934,0.00016438,2]
[390533882,1760076638869,-500.0,0.00016438,2]
[390533883,1760076638879,-500.89667396,0.00016438,2]
[390533884,1760076638889,-500.0,0.00016438,2]
[390533885,1760076638899,-500.0,0.00016438,2]
[390533886,1760076638909,-503.10646988,0.00016438,2]
[390533887,1760076638918,-500.0,0.00016438,2]
[390533889,1760076638928,-500.0,0.00016438,2]
[390533890,1760076638938,-500.35610864,0.00016438,2]
[390533891,1760076638947,-500.0,0.00016438,2]
[390533892,1760076638957,-500.0,0.00016438,2]
[390533893,1760076638966,-500.0,0.00016438,2]
[390533894,1760076638977,-500.0,0.00016438,2]
[390533895,1760076638987,-501.78128131,0.00016438,2]
[390533896,1760076638997,-501.29728258,0.00016438,2]
[390533897,1760076639007,-826.52,0.00016438,2]
[390533899,1760076639016,-500.0,0.00016438,2]
[390533900,1760076639026,-947.04,0.00016438,2]
[390533902,1760076639036,-500.0,0.00016438,2]
[390533903,1760076639047,-500.0,0.00016438,2]
[390533904,1760076639057,-500.0,0.00016438,2]
[390533905,1760076639067,-501.0609937,0.00016438,2]
[390533906,1760076639077,-500.0,0.00016438,2]
[390533907,1760076639086,-504.39754967,0.00016438,2]
[390533908,1760076639096,-502.23036568,0.00016438,2]
[390533909,1760076639106,-500.0,0.00016438,2]
[390533910,1760076639116,-500.0,0.00016438,2]
[390533911,1760076639126,-500.0,0.00016438,2]
[390533912,1760076639136,-500.0,0.00016438,2]
[390533913,1760076639145,-500.0,0.00016438,2]
[390533914,1760076639155,-500.0,0.00016438,2]
[390533915,1760076639165,-500.0,0.00016438,2]
[390533916,1760076639174,-500.0,0.00016438,2]
[390533917,1760076639184,-500.0,0.00016438,2]
[390533918,1760076639194,-500.0,0.00016438,2]
[390533919,1760076639208,-500.0,0.00016438,2]
[390533920,1760076639218,-500.0,0.00016438,2]
[390533921,1760076639232,-500.0,0.00016438,2]
[390533922,1760076639243,-359.67318463,0.00016438,2]
[390533923,1760076639252,-500.0,0.00016438,2]
[390533924,1760076639505,-500.0,0.00016438,2]
[390533925,1760076639515,-500.0,0.00016438,2]
[390533926,1760076639525,-500.0,0.00016438,2]
[390533927,1760076639535,-500.0,0.00016438,2]
[390533928,1760076639544,-500.0,0.00016438,2]
[390533929,1760076639554,-500.0,0.00016438,2]
[390533930,1760076639564,-500.0,0.00016438,2]
[390533931,1760076639573,-500.0,0.00016438,2]
[390533932,1760076639582,-500.0,0.00016438,2]
[390533933,1760076639591,-500.0,0.00016438,2]
[390533934,1760076639601,-504.14856226,0.00016438,2]
[390533935,1760076639610,-500.0,0.00016438,2]
[390533936,1760076639620,-500.0,0.00016438,2]
[390533937,1760076639629,-500.0,0.00016438,2]
[390533938,1760076639638,-500.0,0.00016438,2]
[390533939,1760076639647,-752.22,0.00016438,2]
[390533940,1760076639657,-500.0,0.00016438,2]
[390533941,1760076639666,-500.0,0.00016438,2]
[390533942,1760076639675,-500.0,0.00016438,2]
[390533943,1760076639685,-500.0,0.00016438,2]
[390533944,1760076639694,-500.0,0.00016438,2]
[390533945,1760076639703,-500.0,0.00016438,2]
[390533946,1760076639713,-500.0,0.00016438,2]
[390533947,1760076639723,-500.0,0.00016438,2]
[390533948,1760076639732,-500.0,0.00016438,2]
[390533949,1760076639742,-500.0,0.00016438,2]
[390533951,1760076639751,-500.0,0.00016438,2]
[390533952,1760076639761,-500.0,0.00016438,2]
[390533953,1760076639770,-500.0,0.00016438,2]
[390533954,1760076639779,-500.0,0.00016438,2]
[390533955,1760076639789,-500.0,0.00016438,2]
[390533956,1760076639798,-500.0,0.00016438,2]
[390533957,1760076639807,-1067.5,0.00016438,2]
[390533958,1760076639816,-500.0,0.00016438,2]
[390533959,1760076639825,-240.5526988,0.00016438,2]
[390533960,1760076639835,-500.0,0.00016438,2]
[390533961,1760076639844,-501.10395963,0.00016438,2]
[390533962,1760076639853,-500.0,0.00016438,2]
[390533963,1760076639863,-500.0,0.00016438,2]
[390533964,1760076639872,-502.87965002,0.00016438,2]
[390533965,1760076639881,-500.0,0.00016438,2]
[390533966,1760076639890,-500.0,0.00016438,2]
[390533967,1760076639900,-500.0,0.00016438,2]
[390533968,1760076639910,-500.0,0.00016438,2]
[390533969,1760076639919,-502.03276905,0.00016438,2]
[390533970,1760076639928,-500.0,0.00016438,2]
[390533971,1760076639938,-500.0,0.00016438,2]
[390533972,1760076639947,-500.0,0.00016438,2]
[390533973,1760076639956,-500.0,0.00016438,2]
[390533974,1760076639966,-500.64376211,0.00016438,2]
[390533975,1760076639976,-500.0,0.00016438,2]
[390533976,1760076639985,-501.49543512,0.00016438,2]
[390533977,1760076639994,-501.69374582,0.00016438,2]
[390533978,1760076640003,-500.0,0.00016438,2]
[390533979,1760076640013,-500.0,0.00016438,2]
[390533980,1760076640022,-500.0,0.00016438,2]
[390533981,1760076640033,-500.0,0.00016438,2]
[390533982,1760076640042,-928.41,0.00016438,2]
[390533983,1760076640052,-500.0,0.00016438,2]
[390533985,1760076640062,-500.0,0.00016438,2]
[390533986,1760076640071,-500.0,0.00016438,2]
[390533987,1760076640080,-853.85,0.00016438,2]
[390533989,1760076640090,-200.0,0.00016438,2]
[390533991,1760076640099,-421.83406148,0.00016438,2]
[390533993,1760076640108,-500.0,0.00016438,2]
[390533994,1760076640118,-500.0,0.00016438,2]
[390533995,1760076640128,-500.0,0.00016438,2]
[390533996,1760076640137,-500.0,0.00016438,2]
[390533998,1760076640146,-500.0,0.00016438,2]
[390533999,1760076640155,-500.0,0.00016438,2]
[390534000,1760076640165,-500.0,0.00016438,2]
[390534001,1760076640174,-500.0,0.00016438,2]
[390534002,1760076640183,-500.0,0.00016438,2]
[390534003,1760076640193,-501.60536764,0.00016438,2]
[390534004,1760076640202,-500.0,0.00016438,2]
[390534005,1760076640211,-500.0,0.00016438,2]
[390534006,1760076640220,-500.0,0.00016438,2]
[390534007,1760076640235,-500.0,0.00016438,2]
[390534008,1760076640244,-500.0,0.00016438,2]
[390534009,1760076640253,-500.0,0.00016438,2]
[390534010,1760076640263,-1008.81,0.00016438,2]
[390534011,1760076640272,-500.0,0.00016438,2]
[390534012,1760076640282,-500.0,0.00016438,2]
[390534013,1760076640291,-502.06924811,0.00016438,2]
[390534014,1760076640302,-500.0,0.00016438,2]
[390534015,1760076640313,-500.0,0.00016438,2]
[390534016,1760076640323,-500.0,0.00016438,2]
[390534017,1760076640332,-500.0,0.00016438,2]
[390534018,1760076640344,-500.0,0.00016438,2]
[390534019,1760076640355,-872.46,0.00016438,2]
[390534020,1760076640364,-500.0,0.00016438,2]
[390534021,1760076640373,-500.0,0.00016438,2]
[390534022,1760076640384,-500.0,0.00016438,2]
[390534023,1760076640395,-500.0,0.00016438,2]
[390534024,1760076640405,-500.0,0.00016438,2]